[Event "Titled Tuesday Blitz March 01 Late 2022"]
[White "Ladan, Nicholas"]
[Black "Kim, Sergey"]
[WhiteFideId "30918855"]
[BlackFideId "13700570"]
[WhiteElo "2366"]
[BlackElo "2587"]
[Result "1-0"]
[Round "10"]
[TimeControl "180+1"]
[Date "2022.03.02"]
[WhiteClock "0:01:57"]
[BlackClock "0:01:30"]

1. d4 {[%clk 0:03:00]}  Nf6 {[%clk 0:02:59]} 2. Bf4 {[%clk 0:03:01]}  g6 {[%clk 0:02:59]} 3. Nc3 {[%clk 0:03:01]}  d6 {[%clk 0:02:59]} 4. e4 {[%clk 0:03:02]}  c6 {[%clk 0:02:58]} 5. Qd2 {[%clk 0:03:02]}  b5 {[%clk 0:02:57]} 6. f3 {[%clk 0:03:02]}  b4 {[%clk 0:02:56]} 7. Nce2 {[%clk 0:03:01]}  a5 {[%clk 0:02:56]} 8. h4 {[%clk 0:03:00]}  h5 {[%clk 0:02:55]} 9. O-O-O {[%clk 0:02:58]}  Bg7 {[%clk 0:02:47]} 10. Nh3 {[%clk 0:02:58]}  Na6 {[%clk 0:02:37]} 11. Ng5 {[%clk 0:02:52]}  O-O {[%clk 0:02:27]} 12. Ng3 {[%clk 0:02:36]}  a4 {[%clk 0:02:24]} 13. Bc4 {[%clk 0:02:29]}  d5 {[%clk 0:02:22]} 14. Be2 {[%clk 0:02:24]}  b3 {[%clk 0:02:21]} 15. a3 {[%clk 0:02:22]}  bxc2 {[%clk 0:02:18]} 16. Qxc2 {[%clk 0:02:20]}  Bb7 {[%clk 0:01:57]} 17. e5 {[%clk 0:02:20]}  Nh7 {[%clk 0:01:52]} 18. Nxh7 {[%clk 0:02:14]}  Kxh7 {[%clk 0:01:52]} 19. Nxh5 {[%clk 0:02:14]}  c5 {[%clk 0:01:51]} 20. Nxg7 {[%clk 0:02:12]}  Kxg7 {[%clk 0:01:51]} 21. h5 {[%clk 0:02:02]}  Rh8 {[%clk 0:01:34]} 22. e6 {[%clk 0:01:58]}  cxd4 {[%clk 0:01:30]} 23. Be5+ {[%clk 0:01:58]}  f6 {[%clk 0:01:30]} 24. Qxg6+ {[%clk 0:01:57]} 1-0


[Site "https://www.chess.com"]

[Event "Titled Tuesday Blitz March 01 Late 2022"]
[White "Medeiros Jr, Francisco De Assis"]
[Black "Khabinets, Ivan"]
[WhiteFideId "2114267"]
[BlackFideId "14115980"]
[WhiteElo "1998"]
[BlackElo "2114"]
[Result "1/2-1/2"]
[Round "10"]
[TimeControl "180+1"]
[Date "2022.03.02"]
[WhiteClock "0:00:19"]
[BlackClock "0:00:29"]

1. d4 {[%clk 0:03:00]}  Nf6 {[%clk 0:02:56]} 2. Nf3 {[%clk 0:02:58]}  g6 {[%clk 0:02:56]} 3. Bg5 {[%clk 0:02:58]}  Bg7 {[%clk 0:02:57]} 4. Nbd2 {[%clk 0:02:57]}  O-O {[%clk 0:02:57]} 5. e4 {[%clk 0:02:57]}  d6 {[%clk 0:02:58]} 6. Bc4 {[%clk 0:02:57]}  Nxe4 {[%clk 0:02:55]} 7. Nxe4 {[%clk 0:02:44]}  d5 {[%clk 0:02:55]} 8. Bd3 {[%clk 0:02:40]}  dxe4 {[%clk 0:02:55]} 9. Bxe4 {[%clk 0:02:41]}  Nd7 {[%clk 0:02:55]} 10. O-O {[%clk 0:02:35]}  Nf6 {[%clk 0:02:54]} 11. Bd3 {[%clk 0:02:33]}  Bg4 {[%clk 0:02:47]} 12. c3 {[%clk 0:02:33]}  Qd6 {[%clk 0:02:40]} 13. h3 {[%clk 0:02:27]}  Bxf3 {[%clk 0:02:34]} 14. Qxf3 {[%clk 0:02:28]}  c6 {[%clk 0:02:34]} 15. Rfe1 {[%clk 0:02:28]}  Rfe8 {[%clk 0:02:32]} 16. Bf4 {[%clk 0:02:14]}  Qd5 {[%clk 0:02:29]} 17. Qe2 {[%clk 0:02:03]}  e6 {[%clk 0:02:21]} 18. Bc4 {[%clk 0:01:55]}  Qf5 {[%clk 0:02:18]} 19. Be5 {[%clk 0:01:46]}  Nd5 {[%clk 0:02:15]} 20. Bd3 {[%clk 0:01:44]}  Nf4 {[%clk 0:02:05]} 21. Bxf4 {[%clk 0:01:44]}  Qxf4 {[%clk 0:02:06]} 22. Qe4 {[%clk 0:01:39]}  Qd6 {[%clk 0:02:06]} 23. Rad1 {[%clk 0:01:35]}  Rad8 {[%clk 0:02:04]} 24. Bc2 {[%clk 0:01:28]}  Qc7 {[%clk 0:02:00]} 25. Qf3 {[%clk 0:01:24]}  Qa5 {[%clk 0:01:59]} 26. Bb3 {[%clk 0:01:22]}  Qb5 {[%clk 0:01:47]} 27. Qe2 {[%clk 0:01:11]}  Qb6 {[%clk 0:01:42]} 28. g3 {[%clk 0:01:07]}  a5 {[%clk 0:01:37]} 29. Qc4 {[%clk 0:01:00]}  Ra8 {[%clk 0:01:26]} 30. a4 {[%clk 0:00:50]}  Rad8 {[%clk 0:01:26]} 31. Kg2 {[%clk 0:00:50]}  Rd7 {[%clk 0:01:23]} 32. h4 {[%clk 0:00:50]}  h5 {[%clk 0:01:22]} 33. Re2 {[%clk 0:00:49]}  Red8 {[%clk 0:01:22]} 34. Red2 {[%clk 0:00:49]}  c5 {[%clk 0:01:18]} 35. d5 {[%clk 0:00:46]}  Bh6 {[%clk 0:00:47]} 36. Rd3 {[%clk 0:00:34]}  Rxd5 {[%clk 0:00:30]} 37. Rxd5 {[%clk 0:00:35]}  Qc6 {[%clk 0:00:28]} 38. Qe4 {[%clk 0:00:27]}  exd5 {[%clk 0:00:28]} 39. Rxd5 {[%clk 0:00:25]}  Rxd5 {[%clk 0:00:25]} 40. Bxd5 {[%clk 0:00:20]}  Qb6 {[%clk 0:00:24]} 41. b3 {[%clk 0:00:19]}  Bf8 {[%clk 0:00:20]} 42. Qc4 {[%clk 0:00:10]}  Qc7 {[%clk 0:00:16]} 43. Kg1 {[%clk 0:00:09]}  b6 {[%clk 0:00:16]} 44. Kg2 {[%clk 0:00:09]}  Qd7 {[%clk 0:00:15]} 45. Qe4 {[%clk 0:00:09]}  Bg7 {[%clk 0:00:14]} 46. c4 {[%clk 0:00:08]}  Kh7 {[%clk 0:00:10]} 47. Qf3 {[%clk 0:00:06]}  f5 {[%clk 0:00:07]} 48. Qe2 {[%clk 0:00:07]}  Bd4 {[%clk 0:00:07]} 49. Qe6 {[%clk 0:00:07]}  Qxe6 {[%clk 0:00:04]} 50. Bxe6 {[%clk 0:00:08]}  Kg7 {[%clk 0:00:05]} 51. Bd5 {[%clk 0:00:08]}  Kf6 {[%clk 0:00:06]} 52. f4 {[%clk 0:00:09]}  Bc3 {[%clk 0:00:06]} 53. Kf3 {[%clk 0:00:09]}  Bb4 {[%clk 0:00:07]} 54. Kg2 {[%clk 0:00:10]}  Ba3 {[%clk 0:00:07]} 55. Kf3 {[%clk 0:00:10]}  Ke7 {[%clk 0:00:07]} 56. Kg2 {[%clk 0:00:11]}  Bc1 {[%clk 0:00:06]} 57. Kf3 {[%clk 0:00:10]}  Kf8 {[%clk 0:00:07]} 58. Bc6 {[%clk 0:00:10]}  Bd2 {[%clk 0:00:07]} 59. Bd5 {[%clk 0:00:10]}  Be1 {[%clk 0:00:07]} 60. Be6 {[%clk 0:00:11]}  Kg7 {[%clk 0:00:07]} 61. Bd5 {[%clk 0:00:11]}  Kf6 {[%clk 0:00:08]} 62. Bc6 {[%clk 0:00:11]}  Kf7 {[%clk 0:00:06]} 63. Bb5 {[%clk 0:00:11]}  Ke7 {[%clk 0:00:06]} 64. Bc6 {[%clk 0:00:11]}  Bb4 {[%clk 0:00:04]} 65. Bd5 {[%clk 0:00:12]}  Ba3 {[%clk 0:00:05]} 66. Ke2 {[%clk 0:00:12]}  Bb2 {[%clk 0:00:05]} 67. Kf2 {[%clk 0:00:11]}  Bc3 {[%clk 0:00:05]} 68. Kg2 {[%clk 0:00:11]}  Bb4 {[%clk 0:00:06]} 69. Kf3 {[%clk 0:00:12]}  Kf6 {[%clk 0:00:07]} 70. Bc6 {[%clk 0:00:12]}  Ba3 {[%clk 0:00:07]} 71. Bd5 {[%clk 0:00:11]}  Bb2 {[%clk 0:00:08]} 72. Bg8 {[%clk 0:00:11]}  Bd4 {[%clk 0:00:09]} 73. Bd5 {[%clk 0:00:11]}  Kg7 {[%clk 0:00:09]} 74. Ke2 {[%clk 0:00:10]}  Kf6 {[%clk 0:00:09]} 75. Kf1 {[%clk 0:00:10]}  Ke7 {[%clk 0:00:09]} 76. Kg2 {[%clk 0:00:09]}  Be3 {[%clk 0:00:10]} 77. Kf3 {[%clk 0:00:09]}  Bg1 {[%clk 0:00:10]} 78. Bc6 {[%clk 0:00:07]}  Bd4 {[%clk 0:00:11]} 79. Bd5 {[%clk 0:00:07]}  Kd6 {[%clk 0:00:12]} 80. Bf7 {[%clk 0:00:07]}  Ke7 {[%clk 0:00:08]} 81. Bxg6 {[%clk 0:00:06]}  Kf6 {[%clk 0:00:08]} 82. Bxh5 {[%clk 0:00:07]}  Ke7 {[%clk 0:00:09]} 83. Bg6 {[%clk 0:00:06]}  Kf6 {[%clk 0:00:09]} 84. Be8 {[%clk 0:00:07]}  Ke7 {[%clk 0:00:08]} 85. Bc6 {[%clk 0:00:05]}  Kf6 {[%clk 0:00:09]} 86. Bd5 {[%clk 0:00:06]}  Bb2 {[%clk 0:00:09]} 87. g4 {[%clk 0:00:06]}  fxg4+ {[%clk 0:00:09]} 88. Kxg4 {[%clk 0:00:07]}  Bc1 {[%clk 0:00:09]} 89. Bc6 {[%clk 0:00:04]}  Bb2 {[%clk 0:00:09]} 90. Bb5 {[%clk 0:00:05]}  Bc1 {[%clk 0:00:10]} 91. Ba6 {[%clk 0:00:06]}  Bb2 {[%clk 0:00:10]} 92. Bb7 {[%clk 0:00:07]}  Bc1 {[%clk 0:00:11]} 93. Bd5 {[%clk 0:00:07]}  Bb2 {[%clk 0:00:12]} 94. h5 {[%clk 0:00:08]}  Bc1 {[%clk 0:00:12]} 95. Kf3 {[%clk 0:00:06]}  Kf5 {[%clk 0:00:12]} 96. Be4+ {[%clk 0:00:05]}  Kf6 {[%clk 0:00:12]} 97. Bd5 {[%clk 0:00:05]}  Kf5 {[%clk 0:00:12]} 98. Bc6 {[%clk 0:00:06]}  Bxf4 {[%clk 0:00:10]} 99. Bd7+ {[%clk 0:00:05]}  Ke5 {[%clk 0:00:10]} 100. Bg4 {[%clk 0:00:04]}  Bh6 {[%clk 0:00:10]} 101. Bh3 {[%clk 0:00:04]}  Bc1 {[%clk 0:00:10]} 102. Bd7 {[%clk 0:00:03]}  Bh6 {[%clk 0:00:11]} 103. Bb5 {[%clk 0:00:04]}  Kd4 {[%clk 0:00:12]} 104. Kg4 {[%clk 0:00:03]}  Ke4 {[%clk 0:00:12]} 105. Bc6+ {[%clk 0:00:03]}  Ke5 {[%clk 0:00:13]} 106. Bd5 {[%clk 0:00:03]}  Kf6 {[%clk 0:00:13]} 107. Kh4 {[%clk 0:00:03]}  Be3 {[%clk 0:00:12]} 108. Kg4 {[%clk 0:00:04]}  Bf2 {[%clk 0:00:12]} 109. Be4 {[%clk 0:00:04]}  Be3 {[%clk 0:00:12]} 110. Bg6 {[%clk 0:00:04]}  Bh6 {[%clk 0:00:12]} 111. Kf3 {[%clk 0:00:05]}  Ke5 {[%clk 0:00:13]} 112. Kg4 {[%clk 0:00:05]}  Kf6 {[%clk 0:00:12]} 113. Kf3 {[%clk 0:00:06]}  Ke5 {[%clk 0:00:13]} 114. Kf2 {[%clk 0:00:07]}  Kf4 {[%clk 0:00:13]} 115. Ke2 {[%clk 0:00:06]}  Ke5 {[%clk 0:00:13]} 116. Kd3 {[%clk 0:00:06]}  Bg5 {[%clk 0:00:12]} 117. Bf7 {[%clk 0:00:05]}  Bh6 {[%clk 0:00:13]} 118. Bd5 {[%clk 0:00:05]}  Kd6 {[%clk 0:00:13]} 119. Ke4 {[%clk 0:00:06]}  Ke7 {[%clk 0:00:12]} 120. Kf5 {[%clk 0:00:06]}  Kf8 {[%clk 0:00:06]} 121. Kg6 {[%clk 0:00:07]}  Bc1 {[%clk 0:00:04]} 122. h6 {[%clk 0:00:06]}  Bb2 {[%clk 0:00:04]} 123. h7 {[%clk 0:00:06]}  Bh8 {[%clk 0:00:04]} 124. Kf5 {[%clk 0:00:06]}  Bb2 {[%clk 0:00:05]} 125. Be4 {[%clk 0:00:05]}  Kg7 {[%clk 0:00:06]} 126. Ke6 {[%clk 0:00:06]}  Kh8 {[%clk 0:00:07]} 127. Kd7 {[%clk 0:00:06]}  Bc3 {[%clk 0:00:07]} 128. Kc6 {[%clk 0:00:07]}  Bb4 {[%clk 0:00:07]} 129. Kxb6 {[%clk 0:00:08]}  Kg7 {[%clk 0:00:08]} 130. Kc6 {[%clk 0:00:08]}  Kh8 {[%clk 0:00:09]} 131. Kd5 {[%clk 0:00:08]}  Kg7 {[%clk 0:00:10]} 132. Ke6 {[%clk 0:00:08]}  Kh8 {[%clk 0:00:11]} 133. Kf5 {[%clk 0:00:09]}  Kg7 {[%clk 0:00:12]} 134. Kg5 {[%clk 0:00:09]}  Kh8 {[%clk 0:00:12]} 135. Kh6 {[%clk 0:00:09]}  Bc3 {[%clk 0:00:13]} 136. Bg6 {[%clk 0:00:10]}  Bb4 {[%clk 0:00:14]} 137. Kh5 {[%clk 0:00:10]}  Bc3 {[%clk 0:00:15]} 138. Kh6 {[%clk 0:00:10]}  Bb4 {[%clk 0:00:16]} 139. Bf5 {[%clk 0:00:09]}  Bc3 {[%clk 0:00:17]} 140. Be4 {[%clk 0:00:10]}  Bb4 {[%clk 0:00:18]} 141. Bd3 {[%clk 0:00:11]}  Bc3 {[%clk 0:00:19]} 142. Be4 {[%clk 0:00:11]}  Bb4 {[%clk 0:00:19]} 143. Bd5 {[%clk 0:00:12]}  Bc3 {[%clk 0:00:20]} 144. Bg8 {[%clk 0:00:12]}  Bb4 {[%clk 0:00:21]} 145. Kg6 {[%clk 0:00:13]}  Bc3 {[%clk 0:00:22]} 146. Kf5 {[%clk 0:00:13]}  Bb4 {[%clk 0:00:22]} 147. Ke6 {[%clk 0:00:14]}  Bc3 {[%clk 0:00:23]} 148. Kf5 {[%clk 0:00:15]}  Bb4 {[%clk 0:00:24]} 149. Ke4 {[%clk 0:00:16]}  Kg7 {[%clk 0:00:24]} 150. Kd3 {[%clk 0:00:17]}  Kh8 {[%clk 0:00:25]} 151. Kc2 {[%clk 0:00:17]}  Kg7 {[%clk 0:00:26]} 152. Kd3 {[%clk 0:00:18]}  Kh8 {[%clk 0:00:27]} 153. Ke4 {[%clk 0:00:19]}  Kg7 {[%clk 0:00:28]} 154. Kf5 {[%clk 0:00:19]}  Kh8 {[%clk 0:00:29]} 1/2-1/2


[Site "https://www.chess.com"]

[Event "Titled Tuesday Blitz March 01 Late 2022"]
[White "Mekhitarian, Krikor Sevag"]
[Black "Zubritskiy, Artyom"]
[WhiteFideId "2107660"]
[BlackFideId "4181247"]
[WhiteElo "2598"]
[BlackElo "2459"]
[Result "0-1"]
[Round "10"]
[TimeControl "180+1"]
[Date "2022.03.01"]
[WhiteClock "0:00:02"]
[BlackClock "0:00:39"]

1. e4 {[%clk 0:03:00]}  c5 {[%clk 0:02:59]} 2. Nf3 {[%clk 0:03:00]}  Nf6 {[%clk 0:02:59]} 3. e5 {[%clk 0:02:46]}  Nd5 {[%clk 0:02:59]} 4. Nc3 {[%clk 0:02:46]}  e6 {[%clk 0:03:00]} 5. Ne4 {[%clk 0:02:46]}  f5 {[%clk 0:02:54]} 6. exf6 {[%clk 0:02:21]}  Nxf6 {[%clk 0:02:52]} 7. Nxf6+ {[%clk 0:02:11]}  Qxf6 {[%clk 0:02:53]} 8. d4 {[%clk 0:02:11]}  cxd4 {[%clk 0:02:50]} 9. Qxd4 {[%clk 0:01:51]}  Nc6 {[%clk 0:02:47]} 10. Qxf6 {[%clk 0:01:17]}  gxf6 {[%clk 0:02:48]} 11. c3 {[%clk 0:01:14]}  d5 {[%clk 0:02:47]} 12. Be3 {[%clk 0:01:10]}  e5 {[%clk 0:02:41]} 13. Rd1 {[%clk 0:01:07]}  Be6 {[%clk 0:02:41]} 14. Bb5 {[%clk 0:01:01]}  a6 {[%clk 0:02:37]} 15. Ba4 {[%clk 0:00:59]}  Rg8 {[%clk 0:02:32]} 16. O-O {[%clk 0:00:49]}  Bh3 {[%clk 0:02:23]} 17. Ne1 {[%clk 0:00:45]}  O-O-O {[%clk 0:02:16]} 18. Bb6 {[%clk 0:00:39]}  Rd7 {[%clk 0:02:16]} 19. Bb3 {[%clk 0:00:39]}  Be6 {[%clk 0:02:12]} 20. Nd3 {[%clk 0:00:38]}  Bh3 {[%clk 0:02:05]} 21. Ne1 {[%clk 0:00:36]}  Be6 {[%clk 0:02:01]} 22. Kh1 {[%clk 0:00:12]}  Be7 {[%clk 0:01:45]} 23. Nc2 {[%clk 0:00:12]}  Bd8 {[%clk 0:01:44]} 24. Bc5 {[%clk 0:00:11]}  Bc7 {[%clk 0:01:37]} 25. Be3 {[%clk 0:00:08]}  Na5 {[%clk 0:01:34]} 26. f4 {[%clk 0:00:07]}  Nxb3 {[%clk 0:01:33]} 27. axb3 {[%clk 0:00:08]}  d4 {[%clk 0:01:32]} 28. cxd4 {[%clk 0:00:06]}  Bxb3 {[%clk 0:01:32]} 29. Rd2 {[%clk 0:00:06]}  Rgd8 {[%clk 0:01:25]} 30. fxe5 {[%clk 0:00:06]}  fxe5 {[%clk 0:01:25]} 31. Rc1 {[%clk 0:00:06]}  Kb8 {[%clk 0:01:22]} 32. h3 {[%clk 0:00:06]}  Bb6 {[%clk 0:01:15]} 33. Kh2 {[%clk 0:00:01]}  exd4 {[%clk 0:01:12]} 34. Bf4+ {[%clk 0:00:02]}  Ka7 {[%clk 0:01:12]} 35. Nb4 {[%clk 0:00:03]}  Ba5 {[%clk 0:01:04]} 36. Rd3 {[%clk 0:00:03]}  Bf7 {[%clk 0:00:59]} 37. Bd2 {[%clk 0:00:03]}  Bc7+ {[%clk 0:00:54]} 38. Kg1 {[%clk 0:00:03]}  Bb6 {[%clk 0:00:51]} 39. Bf4 {[%clk 0:00:02]}  Bg6 {[%clk 0:00:49]} 40. Rd2 {[%clk 0:00:01]}  Ba5 {[%clk 0:00:44]} 41. Rc4 {[%clk 0:00:01]}  Bf7 {[%clk 0:00:43]} 42. Rcxd4 {[%clk 0:00:01]}  Rxd4 {[%clk 0:00:41]} 43. Be3 {[%clk 0:00:02]}  Bxb4 {[%clk 0:00:39]} 0-1


[Site "https://www.chess.com"]

[Event "Titled Tuesday Blitz March 01 Late 2022"]
[White "Migot, Tangi"]
[Black "Maltsevskaya, Aleksandra"]
[WhiteFideId "662445"]
[BlackFideId "24174041"]
[WhiteElo "2504"]
[BlackElo "2283"]
[Result "0-1"]
[Round "10"]
[TimeControl "180+1"]
[Date "2022.03.02"]
[WhiteClock "0:00:04"]
[BlackClock "0:00:53"]

1. d4 {[%clk 0:03:00]}  Nf6 {[%clk 0:02:59]} 2. Nf3 {[%clk 0:03:01]}  g6 {[%clk 0:02:59]} 3. Nc3 {[%clk 0:03:00]}  d6 {[%clk 0:03:00]} 4. e4 {[%clk 0:03:01]}  Nbd7 {[%clk 0:03:00]} 5. Be3 {[%clk 0:03:00]}  e5 {[%clk 0:03:01]} 6. dxe5 {[%clk 0:02:59]}  dxe5 {[%clk 0:03:02]} 7. Bc4 {[%clk 0:02:57]}  Bg7 {[%clk 0:03:02]} 8. Qd2 {[%clk 0:02:57]}  O-O {[%clk 0:03:02]} 9. Bh6 {[%clk 0:02:57]}  Qe7 {[%clk 0:03:00]} 10. Bxg7 {[%clk 0:02:51]}  Kxg7 {[%clk 0:03:01]} 11. O-O-O {[%clk 0:02:51]}  Nc5 {[%clk 0:02:55]} 12. Qe2 {[%clk 0:02:49]}  Bg4 {[%clk 0:02:54]} 13. h3 {[%clk 0:02:46]}  Bxf3 {[%clk 0:02:54]} 14. Qxf3 {[%clk 0:02:47]}  c6 {[%clk 0:02:53]} 15. g4 {[%clk 0:02:45]}  Rad8 {[%clk 0:02:50]} 16. Qe3 {[%clk 0:02:34]}  Ne6 {[%clk 0:02:24]} 17. Bxe6 {[%clk 0:02:21]}  Qxe6 {[%clk 0:02:25]} 18. Rxd8 {[%clk 0:02:10]}  Rxd8 {[%clk 0:02:24]} 19. Qxa7 {[%clk 0:02:10]}  b5 {[%clk 0:02:14]} 20. Qb6 {[%clk 0:02:00]}  Rd4 {[%clk 0:02:11]} 21. f3 {[%clk 0:01:52]}  b4 {[%clk 0:02:00]} 22. Ne2 {[%clk 0:01:52]}  Qxa2 {[%clk 0:02:00]} 23. Nxd4 {[%clk 0:01:50]}  Qa1+ {[%clk 0:02:00]} 24. Kd2 {[%clk 0:01:50]}  Qxh1 {[%clk 0:02:01]} 25. g5 {[%clk 0:01:21]}  Nh5 {[%clk 0:01:26]} 26. Nxc6 {[%clk 0:01:14]}  Qxf3 {[%clk 0:01:24]} 27. Qxb4 {[%clk 0:01:10]}  Ng3 {[%clk 0:01:14]} 28. c3 {[%clk 0:00:16]}  Nxe4+ {[%clk 0:01:05]} 29. Kc2 {[%clk 0:00:16]}  Qg2+ {[%clk 0:01:02]} 30. Kb1 {[%clk 0:00:11]}  Nd2+ {[%clk 0:00:57]} 31. Kc2 {[%clk 0:00:11]}  Nf1+ {[%clk 0:00:55]} 32. Kb3 {[%clk 0:00:09]}  Qxc6 {[%clk 0:00:55]} 33. Qe7 {[%clk 0:00:06]}  Nd2+ {[%clk 0:00:54]} 34. Kc2 {[%clk 0:00:06]}  Nc4 {[%clk 0:00:54]} 35. b3 {[%clk 0:00:05]}  Qe4+ {[%clk 0:00:53]} 36. Kd1 {[%clk 0:00:04]}  Qd3+ {[%clk 0:00:53]} 0-1


[Site "https://www.chess.com"]

[Event "Titled Tuesday Blitz March 01 Late 2022"]
[White "Miszler, Levente"]
[Black "Clawitter, Craig"]
[WhiteFideId "763276"]
[BlackFideId "2023105"]
[WhiteElo "1966"]
[BlackElo "2233"]
[Result "1-0"]
[Round "10"]
[TimeControl "180+1"]
[Date "2022.03.02"]
[WhiteClock "0:00:53"]
[BlackClock "0:00:06"]

1. Nf3 {[%clk 0:03:00]}  Nf6 {[%clk 0:02:59]} 2. g3 {[%clk 0:03:01]}  d5 {[%clk 0:02:59]} 3. Bg2 {[%clk 0:03:01]}  e6 {[%clk 0:02:59]} 4. O-O {[%clk 0:03:01]}  Be7 {[%clk 0:03:00]} 5. b3 {[%clk 0:03:01]}  O-O {[%clk 0:02:59]} 6. Bb2 {[%clk 0:03:02]}  a5 {[%clk 0:02:59]} 7. a3 {[%clk 0:02:55]}  c5 {[%clk 0:02:58]} 8. d3 {[%clk 0:02:55]}  a4 {[%clk 0:02:58]} 9. Nbd2 {[%clk 0:02:51]}  Nc6 {[%clk 0:02:56]} 10. c4 {[%clk 0:02:49]}  axb3 {[%clk 0:02:54]} 11. Qxb3 {[%clk 0:02:48]}  d4 {[%clk 0:02:49]} 12. Rfb1 {[%clk 0:02:46]}  e5 {[%clk 0:02:46]} 13. Qc2 {[%clk 0:02:46]}  Re8 {[%clk 0:02:44]} 14. e3 {[%clk 0:02:45]}  dxe3 {[%clk 0:02:26]} 15. fxe3 {[%clk 0:02:46]}  Ng4 {[%clk 0:02:26]} 16. Nf1 {[%clk 0:02:41]}  Bf5 {[%clk 0:02:18]} 17. Rd1 {[%clk 0:02:39]}  Bg5 {[%clk 0:02:13]} 18. Qe2 {[%clk 0:02:36]}  Qe7 {[%clk 0:01:36]} 19. h3 {[%clk 0:02:22]}  Nh6 {[%clk 0:01:33]} 20. h4 {[%clk 0:02:03]}  Bf6 {[%clk 0:01:26]} 21. e4 {[%clk 0:02:02]}  Nd4 {[%clk 0:01:13]} 22. Qf2 {[%clk 0:01:45]}  Bd7 {[%clk 0:00:52]} 23. Ne3 {[%clk 0:01:42]}  Ng4 {[%clk 0:00:49]} 24. Nxg4 {[%clk 0:01:39]}  Bxg4 {[%clk 0:00:50]} 25. Bxd4 {[%clk 0:01:35]}  cxd4 {[%clk 0:00:48]} 26. Qb2 {[%clk 0:01:33]}  g6 {[%clk 0:00:27]} 27. Rdb1 {[%clk 0:01:30]}  Ra7 {[%clk 0:00:27]} 28. Qb4 {[%clk 0:01:28]}  Rea8 {[%clk 0:00:20]} 29. Qxe7 {[%clk 0:01:25]}  Bxe7 {[%clk 0:00:20]} 30. Nxe5 {[%clk 0:01:25]}  Be6 {[%clk 0:00:13]} 31. a4 {[%clk 0:01:22]}  Rxa4 {[%clk 0:00:10]} 32. Rxa4 {[%clk 0:01:23]}  Rxa4 {[%clk 0:00:11]} 33. Rxb7 {[%clk 0:01:23]}  Bf6 {[%clk 0:00:10]} 34. Nf3 {[%clk 0:01:17]}  Ra1+ {[%clk 0:00:09]} 35. Kh2 {[%clk 0:01:16]}  Rd1 {[%clk 0:00:09]} 36. e5 {[%clk 0:01:12]}  Bg7 {[%clk 0:00:07]} 37. Rb8+ {[%clk 0:01:07]}  Bf8 {[%clk 0:00:07]} 38. c5 {[%clk 0:00:53]}  Rxd3 {[%clk 0:00:06]} 39. c6 {[%clk 0:00:53]} 1-0


[Site "https://www.chess.com"]

[Event "Titled Tuesday Blitz March 01 Late 2022"]
[White "Nakamura, Hikaru"]
[Black "Gareyev, Timur"]
[WhiteFideId "2016192"]
[BlackFideId "14200937"]
[WhiteElo "2850"]
[BlackElo "2586"]
[Result "1-0"]
[Round "10"]
[TimeControl "180+1"]
[Date "2022.03.01"]
[WhiteClock "0:00:22"]
[BlackClock "0:00:04"]

1. Nf3 {[%clk 0:03:00]}  Nf6 {[%clk 0:02:58]} 2. b3 {[%clk 0:03:01]}  b6 {[%clk 0:02:57]} 3. Bb2 {[%clk 0:02:59]}  Bb7 {[%clk 0:02:57]} 4. e3 {[%clk 0:03:00]}  e6 {[%clk 0:02:58]} 5. g3 {[%clk 0:03:00]}  g6 {[%clk 0:02:57]} 6. d4 {[%clk 0:03:00]}  Bg7 {[%clk 0:02:56]} 7. Bd3 {[%clk 0:02:59]}  d6 {[%clk 0:02:55]} 8. O-O {[%clk 0:02:59]}  Nbd7 {[%clk 0:02:53]} 9. Nbd2 {[%clk 0:03:00]}  e5 {[%clk 0:02:50]} 10. dxe5 {[%clk 0:02:54]}  Ng4 {[%clk 0:02:50]} 11. Be4 {[%clk 0:02:38]}  d5 {[%clk 0:02:45]} 12. Bd3 {[%clk 0:02:25]}  O-O {[%clk 0:02:44]} 13. Rb1 {[%clk 0:02:23]}  Ngxe5 {[%clk 0:02:22]} 14. Be2 {[%clk 0:02:23]}  Re8 {[%clk 0:02:19]} 15. Re1 {[%clk 0:02:23]}  h5 {[%clk 0:02:12]} 16. Bf1 {[%clk 0:02:22]}  c5 {[%clk 0:02:07]} 17. Bg2 {[%clk 0:02:21]}  Ng4 {[%clk 0:02:00]} 18. Bxg7 {[%clk 0:02:20]}  Kxg7 {[%clk 0:02:01]} 19. c4 {[%clk 0:02:13]}  Qc7 {[%clk 0:01:57]} 20. Qc2 {[%clk 0:02:11]}  Rad8 {[%clk 0:01:49]} 21. Qc3+ {[%clk 0:01:58]}  Ndf6 {[%clk 0:01:40]} 22. Rbd1 {[%clk 0:01:48]}  Kg8 {[%clk 0:01:10]} 23. h3 {[%clk 0:01:44]}  Ne5 {[%clk 0:00:49]} 24. Nxe5 {[%clk 0:01:44]}  Qxe5 {[%clk 0:00:48]} 25. Qxe5 {[%clk 0:01:44]}  Rxe5 {[%clk 0:00:49]} 26. Nb1 {[%clk 0:01:45]}  Re7 {[%clk 0:00:48]} 27. Nc3 {[%clk 0:01:43]}  Red7 {[%clk 0:00:47]} 28. f4 {[%clk 0:01:16]}  d4 {[%clk 0:00:39]} 29. exd4 {[%clk 0:00:44]}  cxd4 {[%clk 0:00:40]} 30. Nb1 {[%clk 0:00:41]}  Bxg2 {[%clk 0:00:34]} 31. Kxg2 {[%clk 0:00:40]}  d3 {[%clk 0:00:35]} 32. Nd2 {[%clk 0:00:40]}  h4 {[%clk 0:00:35]} 33. g4 {[%clk 0:00:40]}  a5 {[%clk 0:00:33]} 34. Nf3 {[%clk 0:00:33]}  a4 {[%clk 0:00:33]} 35. Re3 {[%clk 0:00:32]}  axb3 {[%clk 0:00:32]} 36. axb3 {[%clk 0:00:33]}  b5 {[%clk 0:00:23]} 37. Ne5 {[%clk 0:00:33]}  Ra7 {[%clk 0:00:18]} 38. Rexd3 {[%clk 0:00:31]}  Ra2+ {[%clk 0:00:18]} 39. Kf1 {[%clk 0:00:28]}  Rxd3 {[%clk 0:00:18]} 40. Rxd3 {[%clk 0:00:29]}  bxc4 {[%clk 0:00:18]} 41. bxc4 {[%clk 0:00:29]}  Ne4 {[%clk 0:00:17]} 42. Rd4 {[%clk 0:00:27]}  Ng3+ {[%clk 0:00:16]} 43. Ke1 {[%clk 0:00:27]}  Re2+ {[%clk 0:00:14]} 44. Kd1 {[%clk 0:00:27]}  Rh2 {[%clk 0:00:14]} 45. c5 {[%clk 0:00:28]}  Rxh3 {[%clk 0:00:09]} 46. c6 {[%clk 0:00:28]}  Rh1+ {[%clk 0:00:10]} 47. Kc2 {[%clk 0:00:28]}  Rh2+ {[%clk 0:00:10]} 48. Kb3 {[%clk 0:00:28]}  Ne2 {[%clk 0:00:09]} 49. Rd8+ {[%clk 0:00:25]}  Kg7 {[%clk 0:00:09]} 50. c7 {[%clk 0:00:26]}  Nc1+ {[%clk 0:00:09]} 51. Kc3 {[%clk 0:00:22]}  Ne2+ {[%clk 0:00:06]} 52. Kb4 {[%clk 0:00:22]}  Nxf4 {[%clk 0:00:03]} 53. c8=Q {[%clk 0:00:22]}  Rb2+ {[%clk 0:00:04]} 54. Ka3 {[%clk 0:00:22]} 1-0


[Site "https://www.chess.com"]